[Event "Titled Tuesday Blitz July 25 Early 2023"]
[White "Fajdetic, Hrvoje"]
[Black "Phillips, Rene"]
[WhiteFideId "14501945"]
[BlackFideId "2056275"]
[WhiteElo "2356"]
[BlackElo "2134"]
[Result "1-0"]
[Round "5"]
[TimeControl "180+2"]
[Date "2023.07.25"]
[WhiteClock "0:00:14"]
[BlackClock "0:00:22"]
[Board "205"]

1. f4 {[%clk 0:02:35]}  Nc6 {[%clk 0:02:59]} 2. Nf3 {[%clk 0:02:35]}  d5 {[%clk 0:02:59]} 3. e3 {[%clk 0:02:34]}  f6 {[%clk 0:03:00]} 4. b3 {[%clk 0:02:31]}  Bg4 {[%clk 0:03:00]} 5. Bb2 {[%clk 0:02:28]}  Nh6 {[%clk 0:03:00]} 6. Bb5 {[%clk 0:02:27]}  Qd7 {[%clk 0:02:58]} 7. O-O {[%clk 0:02:22]}  a6 {[%clk 0:02:57]} 8. Bxc6 {[%clk 0:02:21]}  Qxc6 {[%clk 0:02:56]} 9. d3 {[%clk 0:02:19]}  Nf5 {[%clk 0:02:52]} 10. Qd2 {[%clk 0:02:13]}  e6 {[%clk 0:02:48]} 11. Nc3 {[%clk 0:01:58]}  Bxf3 {[%clk 0:02:20]} 12. Rxf3 {[%clk 0:01:55]}  d4 {[%clk 0:02:18]} 13. exd4 {[%clk 0:01:52]}  Nxd4 {[%clk 0:02:17]} 14. Rf2 {[%clk 0:01:33]}  Nf5 {[%clk 0:02:06]} 15. Ne4 {[%clk 0:01:29]}  O-O-O {[%clk 0:02:01]} 16. a3 {[%clk 0:01:23]}  h5 {[%clk 0:01:58]} 17. b4 {[%clk 0:01:22]}  h4 {[%clk 0:01:57]} 18. Qc3 {[%clk 0:01:04]}  Nd4 {[%clk 0:01:48]} 19. a4 {[%clk 0:00:56]}  h3 {[%clk 0:01:36]} 20. g3 {[%clk 0:00:55]}  Be7 {[%clk 0:01:30]} 21. b5 {[%clk 0:00:30]}  axb5 {[%clk 0:01:28]} 22. axb5 {[%clk 0:00:30]}  Qxc3 {[%clk 0:01:21]} 23. Bxc3 {[%clk 0:00:28]}  Nxb5 {[%clk 0:01:20]} 24. Bb2 {[%clk 0:00:24]}  Kb8 {[%clk 0:01:12]} 25. c4 {[%clk 0:00:24]}  Nd4 {[%clk 0:01:06]} 26. Bc3 {[%clk 0:00:22]}  f5 {[%clk 0:00:59]} 27. Nd2 {[%clk 0:00:19]}  Bc5 {[%clk 0:00:58]} 28. Kf1 {[%clk 0:00:17]}  Nc6 {[%clk 0:00:56]} 29. Re2 {[%clk 0:00:17]}  Bd4 {[%clk 0:00:51]} 30. Bxd4 {[%clk 0:00:16]}  Nxd4 {[%clk 0:00:52]} 31. Re5 {[%clk 0:00:15]}  Rd6 {[%clk 0:00:49]} 32. Rea5 {[%clk 0:00:15]}  Ra6 {[%clk 0:00:42]} 33. Rxa6 {[%clk 0:00:15]}  bxa6 {[%clk 0:00:43]} 34. Rxa6 {[%clk 0:00:15]}  Kb7 {[%clk 0:00:44]} 35. Ra3 {[%clk 0:00:14]}  Kc6 {[%clk 0:00:34]} 36. Kf2 {[%clk 0:00:14]}  Rb8 {[%clk 0:00:33]} 37. Ra2 {[%clk 0:00:11]}  Rb4 {[%clk 0:00:31]} 38. Nf3 {[%clk 0:00:11]}  Nb3 {[%clk 0:00:29]} 39. Rb2 {[%clk 0:00:10]}  Rb7 {[%clk 0:00:25]} 40. Ke3 {[%clk 0:00:09]}  Nc5 {[%clk 0:00:25]} 41. Rxb7 {[%clk 0:00:09]}  Nxb7 {[%clk 0:00:26]} 42. Ng5 {[%clk 0:00:07]}  g6 {[%clk 0:00:23]} 43. Nxh3 {[%clk 0:00:07]}  Nc5 {[%clk 0:00:23]} 44. Ng5 {[%clk 0:00:07]}  Kd6 {[%clk 0:00:23]} 45. h3 {[%clk 0:00:07]}  Nb3 {[%clk 0:00:22]} 46. g4 {[%clk 0:00:07]}  c5 {[%clk 0:00:22]} 47. Nf3 {[%clk 0:00:06]}  Kc6 {[%clk 0:00:21]} 48. Ne5+ {[%clk 0:00:06]}  Kd6 {[%clk 0:00:20]} 49. Nxg6 {[%clk 0:00:06]}  Nd4 {[%clk 0:00:21]} 50. g5 {[%clk 0:00:05]}  Nc2+ {[%clk 0:00:21]} 51. Kd2 {[%clk 0:00:05]}  Nd4 {[%clk 0:00:22]} 52. h4 {[%clk 0:00:05]}  Nf3+ {[%clk 0:00:22]} 53. Ke3 {[%clk 0:00:03]}  Nd4 {[%clk 0:00:21]} 54. h5 {[%clk 0:00:03]}  Nc2+ {[%clk 0:00:21]} 55. Kd2 {[%clk 0:00:03]}  Nd4 {[%clk 0:00:22]} 56. h6 {[%clk 0:00:03]}  Nf3+ {[%clk 0:00:22]} 57. Ke3 {[%clk 0:00:04]}  Nd4 {[%clk 0:00:23]} 58. h7 {[%clk 0:00:04]}  Nc2+ {[%clk 0:00:24]} 59. Kd2 {[%clk 0:00:04]}  Nd4 {[%clk 0:00:24]} 60. h8=Q {[%clk 0:00:05]}  Nb3+ {[%clk 0:00:25]} 61. Kc3 {[%clk 0:00:05]}  Nd4 {[%clk 0:00:25]} 62. Qe5+ {[%clk 0:00:05]}  Kc6 {[%clk 0:00:24]} 63. Qxd4 {[%clk 0:00:06]}  cxd4+ {[%clk 0:00:24]} 64. Kxd4 {[%clk 0:00:07]}  Kd6 {[%clk 0:00:24]} 65. c5+ {[%clk 0:00:07]}  Kc6 {[%clk 0:00:24]} 66. Ke5 {[%clk 0:00:08]}  Kb5 {[%clk 0:00:25]} 67. Kxe6 {[%clk 0:00:09]}  Kxc5 {[%clk 0:00:25]} 68. Kxf5 {[%clk 0:00:10]}  Kd4 {[%clk 0:00:26]} 69. Kf6 {[%clk 0:00:11]}  Kxd3 {[%clk 0:00:26]} 70. Ne5+ {[%clk 0:00:11]}  Ke3 {[%clk 0:00:27]} 71. g6 {[%clk 0:00:12]}  Kxf4 {[%clk 0:00:27]} 72. g7 {[%clk 0:00:13]}  Ke3 {[%clk 0:00:26]} 73. g8=Q {[%clk 0:00:14]}  Kd4 {[%clk 0:00:27]} 74. Qe6 {[%clk 0:00:14]}  Kc5 {[%clk 0:00:22]} 75. Nf7 {[%clk 0:00:14]} 1-0


[Site "https://www.chess.com"]

[Event "Titled Tuesday Blitz July 25 Early 2023"]
[White "Rodriguez Santiago, Jaime"]
[Black "Larina, Maria"]
[WhiteFideId "3100898"]
[BlackFideId "24113182"]
[WhiteElo "2342"]
[BlackElo "2114"]
[Result "1-0"]
[Round "5"]
[TimeControl "180+2"]
[Date "2023.07.25"]
[WhiteClock "0:00:38"]
[BlackClock "0:00:00"]
[Board "207"]

1. c4 {[%clk 0:03:00]}  f5 {[%clk 0:02:58]} 2. d4 {[%clk 0:02:58]}  Nf6 {[%clk 0:02:58]} 3. g3 {[%clk 0:02:58]}  g6 {[%clk 0:02:58]} 4. Bg2 {[%clk 0:02:58]}  Bg7 {[%clk 0:02:58]} 5. Nf3 {[%clk 0:02:58]}  d6 {[%clk 0:02:58]} 6. O-O {[%clk 0:02:58]}  O-O {[%clk 0:02:58]} 7. e3 {[%clk 0:02:58]}  Nc6 {[%clk 0:02:53]} 8. Nc3 {[%clk 0:02:58]}  e6 {[%clk 0:02:18]} 9. b3 {[%clk 0:02:50]}  Ne4 {[%clk 0:02:16]} 10. Bb2 {[%clk 0:02:36]}  Qe8 {[%clk 0:01:56]} 11. Nxe4 {[%clk 0:02:19]}  fxe4 {[%clk 0:01:56]} 12. Nd2 {[%clk 0:02:19]}  d5 {[%clk 0:01:55]} 13. f3 {[%clk 0:02:14]}  exf3 {[%clk 0:01:51]} 14. Nxf3 {[%clk 0:02:01]}  Bh6 {[%clk 0:01:50]} 15. Qe2 {[%clk 0:01:53]}  Ne7 {[%clk 0:01:45]} 16. g4 {[%clk 0:01:40]}  c6 {[%clk 0:01:38]} 17. Ne5 {[%clk 0:01:37]}  Bg7 {[%clk 0:01:12]} 18. e4 {[%clk 0:01:21]}  Bxe5 {[%clk 0:01:10]} 19. dxe5 {[%clk 0:01:19]}  dxc4 {[%clk 0:01:05]} 20. Qxc4 {[%clk 0:01:18]}  Bd7 {[%clk 0:00:57]} 21. Rxf8+ {[%clk 0:01:09]}  Qxf8 {[%clk 0:00:57]} 22. Rf1 {[%clk 0:01:09]}  Qg7 {[%clk 0:00:56]} 23. Rf6 {[%clk 0:01:07]}  Rf8 {[%clk 0:00:50]} 24. g5 {[%clk 0:01:05]}  h6 {[%clk 0:00:47]} 25. h4 {[%clk 0:00:55]}  h5 {[%clk 0:00:35]} 26. Bh3 {[%clk 0:00:50]}  Kh7 {[%clk 0:00:16]} 27. Bxe6 {[%clk 0:00:48]}  Bxe6 {[%clk 0:00:11]} 28. Qxe6 {[%clk 0:00:48]}  Ng8 {[%clk 0:00:11]} 29. Rxf8 {[%clk 0:00:42]}  Qxf8 {[%clk 0:00:10]} 30. Qd7+ {[%clk 0:00:41]}  Qg7 {[%clk 0:00:09]} 31. e6 {[%clk 0:00:38]}  Qxd7 {[%clk 0:00:00]} 32. exd7 {[%clk 0:00:38]} 1-0


[Site "https://www.chess.com"]

[Event "Titled Tuesday Blitz July 25 Early 2023"]
[White "Semenova, Alina"]
[Black "Sriniaiyer, Sudarshan"]
[WhiteFideId "24113875"]
[BlackFideId "30937213"]
[WhiteElo "2088"]
[BlackElo "2342"]
[Result "0-1"]
[Round "5"]
[TimeControl "180+2"]
[Date "2023.07.25"]
[WhiteClock "0:00:49"]
[BlackClock "0:01:14"]
[Board "208"]

1. e4 {[%clk 0:03:00]}  c5 {[%clk 0:02:57]} 2. Nf3 {[%clk 0:02:59]}  d6 {[%clk 0:02:57]} 3. d4 {[%clk 0:02:59]}  cxd4 {[%clk 0:02:58]} 4. Nxd4 {[%clk 0:03:00]}  Nf6 {[%clk 0:02:58]} 5. Nc3 {[%clk 0:03:00]}  Nc6 {[%clk 0:02:59]} 6. Be2 {[%clk 0:02:56]}  g6 {[%clk 0:02:58]} 7. Be3 {[%clk 0:02:53]}  Bg7 {[%clk 0:02:57]} 8. O-O {[%clk 0:02:51]}  O-O {[%clk 0:02:54]} 9. Nb3 {[%clk 0:02:51]}  a6 {[%clk 0:02:53]} 10. a4 {[%clk 0:02:48]}  Be6 {[%clk 0:02:53]} 11. f3 {[%clk 0:02:47]}  d5 {[%clk 0:02:51]} 12. exd5 {[%clk 0:02:34]}  Nxd5 {[%clk 0:02:50]} 13. Nxd5 {[%clk 0:02:34]}  Bxd5 {[%clk 0:02:51]} 14. c3 {[%clk 0:02:27]}  Be6 {[%clk 0:02:44]} 15. Nc5 {[%clk 0:02:24]}  Bc8 {[%clk 0:02:42]} 16. a5 {[%clk 0:02:18]}  Qc7 {[%clk 0:02:36]} 17. Qa4 {[%clk 0:01:43]}  Nxa5 {[%clk 0:02:27]} 18. Qxa5 {[%clk 0:01:39]}  b6 {[%clk 0:02:28]} 19. Qb4 {[%clk 0:01:33]}  bxc5 {[%clk 0:02:28]} 20. Bxc5 {[%clk 0:01:30]}  Rb8 {[%clk 0:02:22]} 21. Qa3 {[%clk 0:01:29]}  Re8 {[%clk 0:02:22]} 22. Rfe1 {[%clk 0:01:24]}  Be5 {[%clk 0:01:35]} 23. h3 {[%clk 0:01:21]}  Rxb2 {[%clk 0:01:33]} 24. Qxb2 {[%clk 0:01:13]}  Qxc5+ {[%clk 0:01:33]} 25. Kh1 {[%clk 0:01:13]}  Qxc3 {[%clk 0:01:20]} 26. Qxc3 {[%clk 0:00:58]}  Bxc3 {[%clk 0:01:20]} 27. Bxa6 {[%clk 0:00:49]}  Bxa6 {[%clk 0:01:14]} 0-1


[Site "https://www.chess.com"]

[Event "Titled Tuesday Blitz July 25 Early 2023"]
[White "Makhmudov, Shukhrat"]
[Black "Saim, Mohamed Ilias"]
[WhiteFideId "14200775"]
[BlackFideId "7900465"]
[WhiteElo "2336"]
[BlackElo "1926"]
[Result "1-0"]
[Round "5"]
[TimeControl "180+2"]
[Date "2023.07.25"]
[WhiteClock "0:00:11"]
[BlackClock "0:00:06"]
[Board "210"]

1. e4 {[%clk 0:03:00]}  c6 {[%clk 0:02:59]} 2. Nc3 {[%clk 0:03:00]}  d5 {[%clk 0:03:00]} 3. exd5 {[%clk 0:03:01]}  cxd5 {[%clk 0:03:01]} 4. d4 {[%clk 0:03:02]}  Nc6 {[%clk 0:03:01]} 5. Bf4 {[%clk 0:03:02]}  Nf6 {[%clk 0:03:01]} 6. Nb5 {[%clk 0:03:02]}  e5 {[%clk 0:02:42]} 7. dxe5 {[%clk 0:03:00]}  a6 {[%clk 0:01:58]} 8. exf6 {[%clk 0:02:55]}  axb5 {[%clk 0:01:57]} 9. fxg7 {[%clk 0:02:22]}  Bxg7 {[%clk 0:01:53]} 10. c3 {[%clk 0:02:17]}  b4 {[%clk 0:01:46]} 11. cxb4 {[%clk 0:02:10]}  Bxb2 {[%clk 0:01:30]} 12. Qe2+ {[%clk 0:02:06]}  Qe7 {[%clk 0:01:30]} 13. Qxe7+ {[%clk 0:01:56]}  Kxe7 {[%clk 0:01:22]} 14. Rb1 {[%clk 0:01:44]}  Rxa2 {[%clk 0:01:19]} 15. Nf3 {[%clk 0:01:15]}  Nxb4 {[%clk 0:01:10]} 16. Be5 {[%clk 0:01:04]}  Bxe5 {[%clk 0:00:57]} 17. Nxe5 {[%clk 0:01:03]}  Nc2+ {[%clk 0:00:49]} 18. Kd1 {[%clk 0:01:02]}  Nd4 {[%clk 0:00:26]} 19. Nd3 {[%clk 0:00:45]}  Rg8 {[%clk 0:00:20]} 20. h3 {[%clk 0:00:34]}  Ra7 {[%clk 0:00:17]} 21. Nf4 {[%clk 0:00:26]}  Bf5 {[%clk 0:00:15]} 22. Bd3 {[%clk 0:00:26]}  Be6 {[%clk 0:00:14]} 23. Re1 {[%clk 0:00:24]}  Kd6 {[%clk 0:00:14]} 24. Bxh7 {[%clk 0:00:22]}  Rg7 {[%clk 0:00:13]} 25. Bd3 {[%clk 0:00:21]}  Kd7 {[%clk 0:00:05]} 26. g3 {[%clk 0:00:16]}  Kd6 {[%clk 0:00:04]} 27. Rb4 {[%clk 0:00:13]}  Nf3 {[%clk 0:00:04]} 28. Ke2 {[%clk 0:00:12]}  Ne5 {[%clk 0:00:04]} 29. Reb1 {[%clk 0:00:11]}  Ra2+ {[%clk 0:00:04]} 30. Kf1 {[%clk 0:00:11]}  Nxd3 {[%clk 0:00:02]} 31. Nxd3 {[%clk 0:00:12]}  Bc8 {[%clk 0:00:01]} 32. Nc5 {[%clk 0:00:11]}  Ra7 {[%clk 0:00:02]} 33. Nxb7+ {[%clk 0:00:07]}  Bxb7 {[%clk 0:00:02]} 34. Rxb7 {[%clk 0:00:07]}  Ra2 {[%clk 0:00:02]} 35. R1b6+ {[%clk 0:00:06]}  Ke5 {[%clk 0:00:03]} 36. Rb2 {[%clk 0:00:06]}  Rh7 {[%clk 0:00:03]} 37. Rxa2 {[%clk 0:00:06]}  Rxh3 {[%clk 0:00:04]} 38. Re2+ {[%clk 0:00:07]}  Kd4 {[%clk 0:00:04]} 39. Kg2 {[%clk 0:00:08]}  Kd3 {[%clk 0:00:05]} 40. Kxh3 {[%clk 0:00:08]}  Kxe2 {[%clk 0:00:06]} 41. Rxf7 {[%clk 0:00:09]}  d4 {[%clk 0:00:06]} 42. Rd7 {[%clk 0:00:09]}  d3 {[%clk 0:00:07]} 43. f4 {[%clk 0:00:09]}  d2 {[%clk 0:00:07]} 44. Rxd2+ {[%clk 0:00:10]}  Kxd2 {[%clk 0:00:08]} 45. f5 {[%clk 0:00:10]}  Ke3 {[%clk 0:00:06]} 46. f6 {[%clk 0:00:11]} 1-0


[Site "https://www.chess.com"]

[Event "Titled Tuesday Blitz July 25 Early 2023"]
[White "Alahakoon, Isuru"]
[Black "Novikova, Margarita"]
[WhiteFideId "9900993"]
[BlackFideId "14109689"]
[WhiteElo "2341"]
[BlackElo "2174"]
[Result "1-0"]
[Round "5"]
[TimeControl "180+2"]
[Date "2023.07.25"]
[WhiteClock "0:02:20"]
[BlackClock "0:00:31"]
[Board "216"]

1. Nf3 {[%clk 0:03:00]}  Nf6 {[%clk 0:02:54]} 2. d4 {[%clk 0:03:00]}  e6 {[%clk 0:02:50]} 3. Nc3 {[%clk 0:03:01]}  d5 {[%clk 0:02:47]} 4. Bg5 {[%clk 0:03:00]}  Be7 {[%clk 0:02:45]} 5. Bxf6 {[%clk 0:03:00]}  Bxf6 {[%clk 0:02:45]} 6. e4 {[%clk 0:03:01]}  dxe4 {[%clk 0:02:44]} 7. Nxe4 {[%clk 0:03:02]}  Nc6 {[%clk 0:02:40]} 8. c3 {[%clk 0:03:01]}  e5 {[%clk 0:02:35]} 9. d5 {[%clk 0:03:01]}  Ne7 {[%clk 0:02:23]} 10. d6 {[%clk 0:03:00]}  Ng6 {[%clk 0:02:18]} 11. dxc7 {[%clk 0:03:00]}  Qxc7 {[%clk 0:02:17]} 12. Nd6+ {[%clk 0:02:59]}  Kf8 {[%clk 0:02:17]} 13. Nb5 {[%clk 0:02:32]}  Qd8 {[%clk 0:02:10]} 14. Qxd8+ {[%clk 0:02:28]}  Bxd8 {[%clk 0:02:09]} 15. O-O-O {[%clk 0:02:29]}  Bg4 {[%clk 0:02:08]} 16. Nd6 {[%clk 0:02:25]}  b6 {[%clk 0:01:18]} 17. Bc4 {[%clk 0:02:23]}  Bxf3 {[%clk 0:01:06]} 18. gxf3 {[%clk 0:02:22]}  Bg5+ {[%clk 0:01:06]} 19. Kb1 {[%clk 0:02:21]}  h5 {[%clk 0:00:31]} 20. Nxf7 {[%clk 0:02:20]} 1-0


[Site "https://www.chess.com"]

[Event "Titled Tuesday Blitz July 25 Early 2023"]
[White "Graham, Nathaniel"]
[Black "Kohler, Aran"]
[WhiteFideId "2007983"]
[BlackFideId "1002856"]
[WhiteElo "1977"]
[BlackElo "2249"]
[Result "0-1"]
[Round "5"]
[TimeControl "180+2"]
[Date "2023.07.25"]
[WhiteClock "0:00:00"]
[BlackClock "0:00:58"]
[Board "219"]

1. e4 {[%clk 0:03:00]}  c6 {[%clk 0:03:00]} 2. d4 {[%clk 0:03:00]}  d5 {[%clk 0:03:00]} 3. Nd2 {[%clk 0:03:01]}  dxe4 {[%clk 0:03:00]} 4. Nxe4 {[%clk 0:03:02]}  Bf5 {[%clk 0:03:00]} 5. Ng3 {[%clk 0:03:01]}  Bg6 {[%clk 0:03:01]} 6. Bc4 {[%clk 0:03:02]}  e6 {[%clk 0:03:00]} 7. N1e2 {[%clk 0:03:02]}  Bd6 {[%clk 0:03:00]} 8. O-O {[%clk 0:03:02]}  Qc7 {[%clk 0:03:00]} 9. c3 {[%clk 0:03:02]}  Ne7 {[%clk 0:02:58]} 10. Qd2 {[%clk 0:02:37]}  Nd7 {[%clk 0:02:51]} 11. Nf4 {[%clk 0:02:37]}  O-O-O {[%clk 0:02:48]} 12. Re1 {[%clk 0:02:24]}  Bxf4 {[%clk 0:02:42]} 13. Qxf4 {[%clk 0:02:23]}  Qxf4 {[%clk 0:02:43]} 14. Bxf4 {[%clk 0:02:23]}  Nd5 {[%clk 0:02:44]} 15. Bd6 {[%clk 0:01:58]}  N7b6 {[%clk 0:02:42]} 16. Bxd5 {[%clk 0:01:56]}  Rxd6 {[%clk 0:02:40]} 17. Bb3 {[%clk 0:01:55]}  Rhd8 {[%clk 0:02:34]} 18. Ne4 {[%clk 0:01:52]}  Bxe4 {[%clk 0:02:32]} 19. Rxe4 {[%clk 0:01:51]}  Nd7 {[%clk 0:02:26]} 20. Rae1 {[%clk 0:01:38]}  c5 {[%clk 0:02:18]} 21. dxc5 {[%clk 0:01:26]}  Nxc5 {[%clk 0:02:17]} 22. Rc4 {[%clk 0:01:25]}  Rc6 {[%clk 0:02:18]} 23. Rd1 {[%clk 0:01:09]}  Nxb3 {[%clk 0:01:57]} 24. Rxc6+ {[%clk 0:01:09]}  bxc6 {[%clk 0:01:54]} 25. Rxd8+ {[%clk 0:01:09]}  Kxd8 {[%clk 0:01:54]} 26. axb3 {[%clk 0:01:09]}  a5 {[%clk 0:01:51]} 27. Kf1 {[%clk 0:01:09]}  Kd7 {[%clk 0:01:51]} 28. Ke2 {[%clk 0:01:09]}  Kd6 {[%clk 0:01:50]} 29. Kd3 {[%clk 0:01:09]}  Kc5 {[%clk 0:01:49]} 30. Ke4 {[%clk 0:01:05]}  f6 {[%clk 0:01:48]} 31. f4 {[%clk 0:01:01]}  g6 {[%clk 0:01:46]} 32. g3 {[%clk 0:00:59]}  h6 {[%clk 0:01:46]} 33. h3 {[%clk 0:00:57]}  Kd6 {[%clk 0:01:39]} 34. Kd4 {[%clk 0:00:54]}  e5+ {[%clk 0:01:40]} 35. fxe5+ {[%clk 0:00:53]}  fxe5+ {[%clk 0:01:40]} 36. Kc4 {[%clk 0:00:46]}  Ke6 {[%clk 0:01:36]} 37. b4 {[%clk 0:00:40]}  axb4 {[%clk 0:01:14]} 38. Kxb4 {[%clk 0:00:40]}  Kd5 {[%clk 0:01:13]} 39. Kb3 {[%clk 0:00:20]}  Ke4 {[%clk 0:01:07]} 40. Kc2 {[%clk 0:00:18]}  Kf3 {[%clk 0:01:08]} 41. Kd1 {[%clk 0:00:06]}  Ke3 {[%clk 0:01:05]} 42. Ke1 {[%clk 0:00:04]}  Kd3 {[%clk 0:01:05]} 43. Kf2 {[%clk 0:00:04]}  Kc2 {[%clk 0:01:04]} 44. Ke3 {[%clk 0:00:03]}  Kxb2 {[%clk 0:01:04]} 45. c4 {[%clk 0:00:03]}  Kc3 {[%clk 0:01:03]} 46. c5 {[%clk 0:00:03]}  Kc4 {[%clk 0:01:03]} 47. Ke4 {[%clk 0:00:04]}  Kxc5 {[%clk 0:01:03]} 48. Kxe5 {[%clk 0:00:05]}  Kb4 {[%clk 0:01:01]} 49. Kf6 {[%clk 0:00:03]}  g5 {[%clk 0:00:57]} 50. Kg6 {[%clk 0:00:02]}  c5 {[%clk 0:00:58]} 51. Kxh6 {[%clk 0:00:00]}  c4 {[%clk 0:00:58]} 0-1


[Site "https://www.chess.com"]

[Event "Titled Tuesday Blitz July 25 Early 2023"]
[White "Winkels, Marcel"]
[Black "morozcoma"]
[WhiteFideId "1003887"]
[WhiteElo "2044"]
[BlackElo "2323"]
[Result "0-1"]
[Round "5"]
[TimeControl "180+2"]
[Date "2023.07.25"]
[WhiteClock "0:00:00"]
[BlackClock "0:01:22"]
[Board "226"]

1. e4 {[%clk 0:03:00]}  e5 {[%clk 0:02:58]} 2. Nf3 {[%clk 0:02:59]}  Nc6 {[%clk 0:02:59]} 3. d4 {[%clk 0:02:58]}  exd4 {[%clk 0:03:00]} 4. Bc4 {[%clk 0:02:58]}  Nf6 {[%clk 0:03:00]} 5. e5 {[%clk 0:02:57]}  d5 {[%clk 0:03:01]} 6. Bb5 {[%clk 0:02:55]}  Ne4 {[%clk 0:03:01]} 7. Nxd4 {[%clk 0:02:51]}  Bc5 {[%clk 0:03:02]} 8. Bxc6+ {[%clk 0:02:44]}  bxc6 {[%clk 0:03:01]} 9. c3 {[%clk 0:02:42]}  O-O {[%clk 0:03:01]} 10. O-O {[%clk 0:02:40]}  Bb7 {[%clk 0:02:54]} 11. Be3 {[%clk 0:02:39]}  Bb6 {[%clk 0:02:54]} 12. Nd2 {[%clk 0:02:37]}  Ng5 {[%clk 0:02:52]} 13. f4 {[%clk 0:02:27]}  Ne4 {[%clk 0:02:46]} 14. Nxe4 {[%clk 0:02:04]}  dxe4 {[%clk 0:02:47]} 15. Qg4 {[%clk 0:01:55]}  f5 {[%clk 0:02:06]} 16. Nxf5 {[%clk 0:01:33]}  Rxf5 {[%clk 0:02:06]} 17. Bxb6 {[%clk 0:01:32]}  Bc8 {[%clk 0:02:00]} 18. Rad1 {[%clk 0:01:03]}  Qf8 {[%clk 0:01:50]} 19. Be3 {[%clk 0:00:54]}  Rxe5 {[%clk 0:01:48]} 20. Qg3 {[%clk 0:00:26]}  Rf5 {[%clk 0:01:45]} 21. b4 {[%clk 0:00:19]}  Be6 {[%clk 0:01:44]} 22. Bc5 {[%clk 0:00:16]}  Qf7 {[%clk 0:01:44]} 23. Rd2 {[%clk 0:00:14]}  Bxa2 {[%clk 0:01:42]} 24. Rfd1 {[%clk 0:00:13]}  Rd5 {[%clk 0:01:41]} 25. Qe1 {[%clk 0:00:09]}  Rxd2 {[%clk 0:01:40]} 26. Qxd2 {[%clk 0:00:08]}  Bd5 {[%clk 0:01:41]} 27. c4 {[%clk 0:00:05]}  Bxc4 {[%clk 0:01:41]} 28. Qd8+ {[%clk 0:00:04]}  Qe8 {[%clk 0:01:36]} 29. Qxc7 {[%clk 0:00:00]}  Bd5 {[%clk 0:01:22]} 0-1


[Site "https://www.chess.com"]

[Event "Titled Tuesday Blitz July 25 Early 2023"]
[White "Alberto, Manuel"]
[Black "Maluco_do_Natal_00"]
[WhiteFideId "10100148"]
[WhiteElo "2322"]
[BlackElo "2037"]
[Result "1-0"]
[Round "5"]
[TimeControl "180+2"]
[Date "2023.07.25"]
[WhiteClock "0:00:44"]
[BlackClock "0:00:00"]
[Board "227"]

1. e4 {[%clk 0:02:54]}  c5 {[%clk 0:02:59]} 2. Nf3 {[%clk 0:02:53]}  Nc6 {[%clk 0:03:00]} 3. Bb5 {[%clk 0:02:52]}  e6 {[%clk 0:03:00]} 4. Bxc6 {[%clk 0:02:51]}  bxc6 {[%clk 0:02:59]} 5. O-O {[%clk 0:02:51]}  Ne7 {[%clk 0:02:59]} 6. e5 {[%clk 0:02:52]}  Ng6 {[%clk 0:02:56]} 7. Re1 {[%clk 0:02:51]}  Be7 {[%clk 0:02:56]} 8. d3 {[%clk 0:02:50]}  O-O {[%clk 0:02:56]} 9. Nbd2 {[%clk 0:02:50]}  f6 {[%clk 0:02:56]} 10. Nc4 {[%clk 0:02:47]}  Ba6 {[%clk 0:02:45]} 11. exf6 {[%clk 0:02:44]}  Bxf6 {[%clk 0:02:35]} 12. Nd6 {[%clk 0:02:42]}  Qc7 {[%clk 0:02:19]} 13. Ne4 {[%clk 0:02:42]}  Be7 {[%clk 0:02:19]} 14. c4 {[%clk 0:02:40]}  d5 {[%clk 0:02:05]} 15. Ng3 {[%clk 0:02:38]}  dxc4 {[%clk 0:01:53]} 16. dxc4 {[%clk 0:02:37]}  Bxc4 {[%clk 0:01:52]} 17. Bg5 {[%clk 0:02:24]}  Bd5 {[%clk 0:01:47]} 18. Bxe7 {[%clk 0:02:23]}  Qxe7 {[%clk 0:01:22]} 19. Ne4 {[%clk 0:02:01]}  Rad8 {[%clk 0:01:00]} 20. Qc2 {[%clk 0:02:00]}  c4 {[%clk 0:00:45]} 21. Re3 {[%clk 0:01:57]}  Rf4 {[%clk 0:00:20]} 22. Rae1 {[%clk 0:01:54]}  Rdf8 {[%clk 0:00:20]} 23. Nfd2 {[%clk 0:01:46]}  Qf7 {[%clk 0:00:10]} 24. f3 {[%clk 0:01:45]}  a5 {[%clk 0:00:07]} 25. Nxc4 {[%clk 0:01:45]}  e5 {[%clk 0:00:06]} 26. Nxa5 {[%clk 0:01:39]}  Nh4 {[%clk 0:00:06]} 27. Qc3 {[%clk 0:01:25]}  Qg6 {[%clk 0:00:05]} 28. Ng3 {[%clk 0:01:19]}  Nf5 {[%clk 0:00:04]} 29. Rxe5 {[%clk 0:01:13]}  Nxg3 {[%clk 0:00:02]} 30. hxg3 {[%clk 0:01:10]}  Qxg3 {[%clk 0:00:03]} 31. Re8 {[%clk 0:00:52]}  h6 {[%clk 0:00:02]} 32. Rxf8+ {[%clk 0:00:51]}  Rxf8 {[%clk 0:00:02]} 33. Re3 {[%clk 0:00:49]}  Qf4 {[%clk 0:00:00]} 34. b3 {[%clk 0:00:44]} 1-0


[Site "https://www.chess.com"]

[Event "Titled Tuesday Blitz July 25 Early 2023"]
[White "Bogumil, Tatiana"]
[Black "Slovineanu, Viacheslav"]
[WhiteFideId "4110579"]
[BlackFideId "13900510"]
[WhiteElo "2029"]
[BlackElo "2322"]
[Result "0-1"]
[Round "5"]
[TimeControl "180+2"]
[Date "2023.07.25"]
[WhiteClock "0:00:00"]
[BlackClock "0:00:58"]
[Board "228"]

1. Nf3 {[%clk 0:02:59]}  d5 {[%clk 0:02:59]} 2. c4 {[%clk 0:02:59]}  e6 {[%clk 0:02:58]} 3. b3 {[%clk 0:02:59]}  Nf6 {[%clk 0:02:56]} 4. Bb2 {[%clk 0:02:58]}  c5 {[%clk 0:02:56]} 5. g3 {[%clk 0:02:58]}  Nc6 {[%clk 0:02:54]} 6. Bg2 {[%clk 0:02:57]}  d4 {[%clk 0:02:54]} 7. O-O {[%clk 0:02:51]}  Bd6 {[%clk 0:02:54]} 8. d3 {[%clk 0:02:51]}  O-O {[%clk 0:02:52]} 9. a3 {[%clk 0:02:51]}  e5 {[%clk 0:02:48]} 10. b4 {[%clk 0:02:45]}  cxb4 {[%clk 0:02:47]} 11. axb4 {[%clk 0:02:46]}  Nxb4 {[%clk 0:02:34]} 12. Na3 {[%clk 0:02:42]}  Re8 {[%clk 0:02:26]} 13. Nb5 {[%clk 0:02:30]}  Bc5 {[%clk 0:01:48]} 14. Ba3 {[%clk 0:02:18]}  a6 {[%clk 0:01:40]} 15. Bxb4 {[%clk 0:02:15]}  Bxb4 {[%clk 0:01:40]} 16. Qb3 {[%clk 0:01:59]}  Bc5 {[%clk 0:01:39]} 17. Nd2 {[%clk 0:01:53]}  Rb8 {[%clk 0:01:33]} 18. Na3 {[%clk 0:01:52]}  Bf5 {[%clk 0:01:28]} 19. f3 {[%clk 0:01:47]}  Be6 {[%clk 0:01:19]} 20. Qc2 {[%clk 0:01:39]}  Qc7 {[%clk 0:01:16]} 21. Rfb1 {[%clk 0:01:27]}  h6 {[%clk 0:01:15]} 22. Ne4 {[%clk 0:01:14]}  Nxe4 {[%clk 0:01:12]} 23. fxe4 {[%clk 0:01:14]}  Bd7 {[%clk 0:01:08]} 24. h4 {[%clk 0:01:03]}  f5 {[%clk 0:01:06]} 25. exf5 {[%clk 0:01:02]}  Bxf5 {[%clk 0:01:06]} 26. Qa4 {[%clk 0:00:57]}  Bd7 {[%clk 0:01:00]} 27. Qd1 {[%clk 0:00:00]}  e4 {[%clk 0:00:58]} 0-1


[Site "https://www.chess.com"]